[Event "Late-Titled-Tuesday-Blitz-September-05-2023"]
[Site "Chess.com"]
[Date "2023.09.05"]
[Round "5"]
[White "MelihKaanCan"]
[Black "TanitoluwaAps116"]
[Result "0-1"]
[WhiteElo "2462"]
[BlackElo "2697"]
[TimeControl "180+1"]
[EndTime "14:55:58 PDT"]
[Termination "TanitoluwaAps116 won on time"]

1. Nf3 {[%clk 0:02:32.5]} 1... Nf6 {[%clk 0:02:52.8]} 2. b3 {[%clk 0:02:30.1]}
2... g6 {[%clk 0:02:51.9]} 3. Bb2 {[%clk 0:02:30.1]} 3... Bg7 {[%clk 0:02:51.2]}
4. g3 {[%clk 0:02:30.7]} 4... O-O {[%clk 0:02:50.5]} 5. Bg2 {[%clk 0:02:31.2]}
5... d6 {[%clk 0:02:50.2]} 6. O-O {[%clk 0:02:31.7]} 6... Nc6 {[%clk 0:02:50.4]}
7. c4 {[%clk 0:02:30.1]} 7... e5 {[%clk 0:02:50.4]} 8. d3 {[%clk 0:02:28.2]}
8... Re8 {[%clk 0:02:49.6]} 9. Nbd2 {[%clk 0:02:26.4]} 9... h6 {[%clk
0:02:48.5]} 10. Ne1 {[%clk 0:02:20.8]} 10... Be6 {[%clk 0:02:47]} 11. a3 {[%clk
0:02:20.4]} 11... d5 {[%clk 0:02:36.5]} 12. cxd5 {[%clk 0:02:18.4]} 12... Bxd5
{[%clk 0:02:33.6]} 13. Nc2 {[%clk 0:02:08.9]} 13... Bxg2 {[%clk 0:02:31.7]} 14.
Kxg2 {[%clk 0:02:09.8]} 14... Qd5+ {[%clk 0:02:31.3]} 15. Kg1 {[%clk 0:02:10.1]}
15... Rad8 {[%clk 0:02:28.5]} 16. Ne3 {[%clk 0:02:10.5]} 16... Qe6 {[%clk
0:02:25.6]} 17. Nf3 {[%clk 0:01:56.3]} 17... e4 {[%clk 0:02:23.5]} 18. Ne1
{[%clk 0:01:52.5]} 18... exd3 {[%clk 0:02:16.4]} 19. Nxd3 {[%clk 0:01:53.4]}
19... Ng4 {[%clk 0:02:00.1]} 20. Nxg4 {[%clk 0:01:28.5]} 20... Bxb2 {[%clk
0:01:58.7]} 21. Ra2 {[%clk 0:01:08.1]} 21... Bd4 {[%clk 0:01:42]} 22. Nxh6+
{[%clk 0:00:56.4]} 22... Kh7 {[%clk 0:01:40.9]} 23. Qc1 {[%clk 0:00:53.5]} 23...
Bg7 {[%clk 0:01:35.8]} 24. Nc5 {[%clk 0:00:42.3]} 24... Qd5 {[%clk 0:00:59.6]}
25. Ng4 {[%clk 0:00:37.5]} 25... Nd4 {[%clk 0:00:56.5]} 26. Ne3 {[%clk
0:00:23.5]} 26... Qh5 {[%clk 0:00:53]} 27. Rd1 {[%clk 0:00:16.1]} 27... Nxe2+
{[%clk 0:00:46.9]} 28. Rxe2 {[%clk 0:00:09.1]} 28... Qxe2 {[%clk 0:00:47.8]} 29.
Rxd8 {[%clk 0:00:02.7]} 29... Rxd8 {[%clk 0:00:48.7]} 30. Nxb7 {[%clk
0:00:03.2]} 30... Rd2 {[%clk 0:00:47.5]} 31. Qf1 {[%clk 0:00:01.8]} 31... Qf3
{[%clk 0:00:45.2]} 0-1

[Event "Late-Titled-Tuesday-Blitz-September-05-2023"]
[Site "Chess.com"]
[Date "2023.09.05"]
[Round "5"]
[White "zozik"]
[Black "onnoelgersma"]
[Result "0-1"]
[WhiteElo "2385"]
[BlackElo "2583"]
[TimeControl "180+1"]
[EndTime "14:56:03 PDT"]
[Termination "onnoelgersma won on time"]

1. d4 {[%clk 0:02:59.8]} 1... g6 {[%clk 0:02:59.9]} 2. Nf3 {[%clk 0:02:58.1]}
2... Bg7 {[%clk 0:02:59.9]} 3. g3 {[%clk 0:02:59]} 3... d6 {[%clk 0:02:58.2]} 4.
Bg2 {[%clk 0:02:59.7]} 4... Bf5 {[%clk 0:02:55.9]} 5. O-O {[%clk 0:03:00.1]}
5... Qc8 {[%clk 0:02:55.6]} 6. c4 {[%clk 0:03:00]} 6... Nf6 {[%clk 0:02:54]} 7.
Nc3 {[%clk 0:03:00.4]} 7... Ne4 {[%clk 0:02:53.3]} 8. Qb3 {[%clk 0:02:53.3]}
8... O-O {[%clk 0:02:50.9]} 9. Nh4 {[%clk 0:02:43.4]} 9... Nxc3 {[%clk
0:02:30.2]} 10. bxc3 {[%clk 0:02:14.2]} 10... Nc6 {[%clk 0:02:29.3]} 11. Nxf5
{[%clk 0:02:11.9]} 11... gxf5 {[%clk 0:02:30.2]} 12. Qc2 {[%clk 0:01:55.3]}
12... e6 {[%clk 0:02:28.3]} 13. e4 {[%clk 0:01:49.2]} 13... fxe4 {[%clk
0:02:24.3]} 14. Bxe4 {[%clk 0:01:47.8]} 14... f5 {[%clk 0:02:24.5]} 15. Bg2
{[%clk 0:01:47.6]} 15... Qd7 {[%clk 0:02:22.6]} 16. Re1 {[%clk 0:01:45.4]} 16...
Rae8 {[%clk 0:02:20.2]} 17. Rb1 {[%clk 0:01:34.1]} 17... Na5 {[%clk 0:02:16.4]}
18. Qd3 {[%clk 0:01:27.4]} 18... b6 {[%clk 0:02:16.1]} 19. Ba3 {[%clk
0:01:14.5]} 19... Qa4 {[%clk 0:02:10.1]} 20. Bb4 {[%clk 0:01:13.4]} 20... Qxa2
{[%clk 0:02:09.8]} 21. Bxa5 {[%clk 0:01:09.9]} 21... Qxa5 {[%clk 0:02:09.4]} 22.
Rxe6 {[%clk 0:00:58.8]} 22... Rxe6 {[%clk 0:02:03.4]} 23. Bd5 {[%clk 0:00:57.9]}
23... f4 {[%clk 0:01:55.5]} 24. Bxe6+ {[%clk 0:00:46.7]} 24... Kh8 {[%clk
0:01:55.3]} 25. Bd5 {[%clk 0:00:41.8]} 25... Qa2 {[%clk 0:01:48.7]} 26. f3
{[%clk 0:00:19.4]} 26... c5 {[%clk 0:01:38.9]} 27. Re1 {[%clk 0:00:17.3]} 27...
cxd4 {[%clk 0:01:34.4]} 28. cxd4 {[%clk 0:00:16.7]} 28... Qb2 {[%clk 0:01:33.1]}
29. Re4 {[%clk 0:00:14.2]} 29... a5 {[%clk 0:01:30.5]} 30. gxf4 {[%clk
0:00:08.1]} 30... a4 {[%clk 0:01:29.8]} 31. f5 {[%clk 0:00:08.1]} 31... a3
{[%clk 0:01:27.7]} 32. f6 {[%clk 0:00:07.7]} 32... Bxf6 {[%clk 0:01:23.8]} 33.
Re2 {[%clk 0:00:05.2]} 33... Bxd4+ {[%clk 0:00:46.6]} 0-1

[Event "Late-Titled-Tuesday-Blitz-September-05-2023"]
[Site "Chess.com"]
[Date "2023.09.05"]
[Round "5"]
[White "venturov"]
[Black "slidingknight2775"]
[Result "1-0"]
[WhiteElo "2449"]
[BlackElo "2581"]
[TimeControl "180+1"]
[EndTime "14:56:08 PDT"]
[Termination "venturov won on time"]

1. Nf3 {[%clk 0:03:00.9]} 1... d5 {[%clk 0:02:59.7]} 2. b3 {[%clk 0:03:00.5]}
2... c5 {[%clk 0:02:59.3]} 3. Bb2 {[%clk 0:02:59.3]} 3... f6 {[%clk 0:02:59.5]}
4. e3 {[%clk 0:02:59.9]} 4... e5 {[%clk 0:02:59.2]} 5. d4 {[%clk 0:03:00.5]}
5... cxd4 {[%clk 0:02:59.6]} 6. exd4 {[%clk 0:03:00.6]} 6... e4 {[%clk
0:03:00.1]} 7. Nfd2 {[%clk 0:03:01]} 7... f5 {[%clk 0:03:00.5]} 8. c4 {[%clk
0:03:01.5]} 8... Nf6 {[%clk 0:03:01]} 9. Nc3 {[%clk 0:03:01.5]} 9... Nc6 {[%clk
0:02:57.9]} 10. cxd5 {[%clk 0:03:01.1]} 10... Nxd5 {[%clk 0:02:54.8]} 11. Nxd5
{[%clk 0:03:01.5]} 11... Qxd5 {[%clk 0:02:54.6]} 12. Bc4 {[%clk 0:03:02.1]}
12... Qd8 {[%clk 0:02:51.3]} 13. O-O {[%clk 0:03:00.7]} 13... Bd6 {[%clk
0:02:47.8]} 14. f3 {[%clk 0:02:51.5]} 14... Qh4 {[%clk 0:02:27.9]} 15. g3 {[%clk
0:02:43.1]} 15... Bxg3 {[%clk 0:02:27.1]} 16. Qe2 {[%clk 0:02:41.5]} 16... Bf4
{[%clk 0:02:06]} 17. fxe4 {[%clk 0:02:35]} 17... Qg5+ {[%clk 0:01:53.4]} 18. Kh1
{[%clk 0:02:32.9]} 18... Bxd2 {[%clk 0:01:50.4]} 19. exf5+ {[%clk 0:02:32.3]}
19... Kd8 {[%clk 0:01:45.9]} 20. d5 {[%clk 0:02:21.2]} 20... Na5 {[%clk
0:01:41.9]} 21. f6 {[%clk 0:02:17.9]} 21... Bg4 {[%clk 0:01:16.4]} 22. Qe7+
{[%clk 0:02:14.3]} 22... Kc8 {[%clk 0:01:16.6]} 23. Be5 {[%clk 0:01:51.1]} 23...
Bd7 {[%clk 0:00:41.6]} 24. Qd6 {[%clk 0:01:14.5]} 24... Qxe5 {[%clk 0:00:10.7]}
25. Qxe5 {[%clk 0:01:13]} 25... gxf6 {[%clk 0:00:11.6]} 26. Rxf6 {[%clk
0:01:07.3]} 26... Re8 {[%clk 0:00:12]} 27. Qd6 {[%clk 0:00:59.4]} 27... Nxc4
{[%clk 0:00:09.1]} 28. bxc4 {[%clk 0:00:55.3]} 28... Bc3 {[%clk 0:00:03.7]} 29.
Rf7 {[%clk 0:00:55.2]} 29... Rd8 {[%clk 0:00:04.1]} 30. Raf1 {[%clk 0:00:50.4]}
30... Ba5 {[%clk 0:00:03]} 31. Qc5+ {[%clk 0:00:44.6]} 31... Bc7 {[%clk
0:00:03.2]} 32. Rxd7 {[%clk 0:00:38.5]} 32... Rxd7 {[%clk 0:00:01.9]} 33. Rf8+
{[%clk 0:00:39]} 33... Rd8 {[%clk 0:00:02.4]} 34. d6 {[%clk 0:00:38.2]} 1-0

[Event "Late-Titled-Tuesday-Blitz-September-05-2023"]
[Site "Chess.com"]
[Date "2023.09.05"]
[Round "5"]
[White "wild3000"]
[Black "Michalczak"]
[Result "1/2-1/2"]
[WhiteElo "2347"]
[BlackElo "2506"]
[TimeControl "180+1"]
[EndTime "14:56:08 PDT"]
[Termination "Game drawn by repetition"]

1. d4 {[%clk 0:02:49.4]} 1... Nf6 {[%clk 0:02:59.6]} 2. Nf3 {[%clk 0:02:47.9]}
2... d5 {[%clk 0:02:59.7]} 3. g3 {[%clk 0:02:48.2]} 3... c5 {[%clk 0:02:56]} 4.
Bg2 {[%clk 0:02:48.6]} 4... cxd4 {[%clk 0:02:55.7]} 5. Nxd4 {[%clk 0:02:48.6]}
5... e5 {[%clk 0:02:55.3]} 6. Nb3 {[%clk 0:02:48.2]} 6... Nc6 {[%clk 0:02:53.2]}
7. O-O {[%clk 0:02:47.8]} 7... h6 {[%clk 0:02:52.9]} 8. e4 {[%clk 0:02:39.3]}
8... d4 {[%clk 0:02:52.7]} 9. c3 {[%clk 0:02:38.3]} 9... dxc3 {[%clk 0:02:46.2]}
10. Qxd8+ {[%clk 0:02:35.5]} 10... Nxd8 {[%clk 0:02:47.1]} 11. Nxc3 {[%clk
0:02:34]} 11... a6 {[%clk 0:02:36.3]} 12. Be3 {[%clk 0:02:28.7]} 12... Nc6
{[%clk 0:02:35.8]} 13. Nd5 {[%clk 0:02:26.2]} 13... Nxd5 {[%clk 0:02:32.4]} 14.
exd5 {[%clk 0:02:26.2]} 14... Nb4 {[%clk 0:02:33.1]} 15. Rac1 {[%clk 0:02:10.8]}
15... Nxa2 {[%clk 0:02:29.2]} 16. Rc4 {[%clk 0:02:05.4]} 16... b5 {[%clk
0:02:28.6]} 17. Re4 {[%clk 0:01:54.9]} 17... Bd6 {[%clk 0:02:20.3]} 18. f4
{[%clk 0:01:54.9]} 18... Bf5 {[%clk 0:02:01.7]} 19. Rxe5+ {[%clk 0:01:54.4]}
19... Bxe5 {[%clk 0:02:01.5]} 20. fxe5 {[%clk 0:01:55.3]} 20... Bd3 {[%clk
0:02:01.4]} 21. Ra1 {[%clk 0:01:49.9]} 21... Nb4 {[%clk 0:02:01.2]} 22. Nc5
{[%clk 0:01:43.5]} 22... Bf5 {[%clk 0:01:50.7]} 23. d6 {[%clk 0:01:38]} 23...
Rc8 {[%clk 0:01:40.6]} 24. Rf1 {[%clk 0:01:32.7]} 24... Be6 {[%clk 0:01:32.4]}
25. Bb7 {[%clk 0:01:22.9]} 25... Rd8 {[%clk 0:01:24.1]} 26. Nxa6 {[%clk
0:01:17.6]} 26... Nxa6 {[%clk 0:01:17.9]} 27. Bxa6 {[%clk 0:01:18.5]} 27... Bd7
{[%clk 0:01:17.9]} 28. Bb7 {[%clk 0:01:11.8]} 28... O-O {[%clk 0:01:17.5]} 29.
Bd5 {[%clk 0:01:04.7]} 29... Be6 {[%clk 0:01:15.4]} 30. Bxe6 {[%clk 0:00:54.3]}
30... fxe6 {[%clk 0:01:16.3]} 31. Bb6 {[%clk 0:00:49.5]} 31... Ra8 {[%clk
0:00:58]} 32. Rxf8+ {[%clk 0:00:42.8]} 32... Kxf8 {[%clk 0:00:58.9]} 33. d7
{[%clk 0:00:38.4]} 33... Ke7 {[%clk 0:00:57.7]} 34. d8=Q+ {[%clk 0:00:38.3]}
34... Rxd8 {[%clk 0:00:57.2]} 35. Bxd8+ {[%clk 0:00:39.2]} 35... Kxd8 {[%clk
0:00:57.9]} 36. Kf2 {[%clk 0:00:39.2]} 36... Kc7 {[%clk 0:00:54.6]} 37. Ke3
{[%clk 0:00:39.3]} 37... Kc6 {[%clk 0:00:44.3]} 38. Kd4 {[%clk 0:00:39.2]} 38...
g5 {[%clk 0:00:44]} 39. g4 {[%clk 0:00:38.5]} 39... Kb6 {[%clk 0:00:42.7]} 40.
b3 {[%clk 0:00:31.2]} 40... Kc6 {[%clk 0:00:42.7]} 41. b4 {[%clk 0:00:29]} 41...
Kb6 {[%clk 0:00:42.9]} 42. Kd3 {[%clk 0:00:27.7]} 42... Kc6 {[%clk 0:00:40]} 43.
Ke4 {[%clk 0:00:27.7]} 43... Kb6 {[%clk 0:00:40.4]} 44. Kd4 {[%clk 0:00:26.5]}
44... Kc6 {[%clk 0:00:40.8]} 45. Ke4 {[%clk 0:00:26.6]} 45... Kb6 {[%clk
0:00:41.3]} 46. Kd4 {[%clk 0:00:27]} 46... Kc6 {[%clk 0:00:42]} 47. Ke4 {[%clk
0:00:27.4]} 1/2-1/2

[Event "Late-Titled-Tuesday-Blitz-September-05-2023"]
[Site "Chess.com"]
[Date "2023.09.05"]
[Round "5"]
[White "kikoveiga"]
[Black "BeautiFullMindChess"]
[Result "0-1"]
[WhiteElo "2565"]
[BlackElo "2355"]
[TimeControl "180+1"]
[EndTime "14:56:08 PDT"]
[Termination "BeautiFullMindChess won by checkmate"]

1. c4 {[%clk 0:02:54.8]} 1... e6 {[%clk 0:02:58.3]} 2. Nf3 {[%clk 0:02:51.8]}
2... d5 {[%clk 0:02:58.4]} 3. g3 {[%clk 0:02:52.3]} 3... Nf6 {[%clk 0:02:58.5]}
4. Bg2 {[%clk 0:02:52.7]} 4... h6 {[%clk 0:02:59.1]} 5. O-O {[%clk 0:02:53.3]}
5... Bd6 {[%clk 0:02:58.9]} 6. b3 {[%clk 0:02:53.6]} 6... O-O {[%clk 0:02:58.8]}
7. Bb2 {[%clk 0:02:54.2]} 7... a5 {[%clk 0:02:58.8]} 8. d3 {[%clk 0:02:51.6]}
8... b6 {[%clk 0:02:59.1]} 9. Nbd2 {[%clk 0:02:51.5]} 9... Bb7 {[%clk
0:02:59.1]} 10. Qc2 {[%clk 0:02:51.4]} 10... Nbd7 {[%clk 0:02:57.5]} 11. e4
{[%clk 0:02:50.6]} 11... dxe4 {[%clk 0:02:54.4]} 12. dxe4 {[%clk 0:02:51.5]}
12... e5 {[%clk 0:02:54.4]} 13. Rad1 {[%clk 0:02:49.6]} 13... Qe7 {[%clk
0:02:54.2]} 14. Rfe1 {[%clk 0:02:28.3]} 14... Rfe8 {[%clk 0:02:53.3]} 15. Nb1
{[%clk 0:02:28]} 15... Bb4 {[%clk 0:02:51.1]} 16. Nc3 {[%clk 0:02:15.4]} 16...
a4 {[%clk 0:02:31.3]} 17. Re2 {[%clk 0:02:07]} 17... axb3 {[%clk 0:02:24.7]} 18.
axb3 {[%clk 0:02:07.9]} 18... c6 {[%clk 0:02:08.8]} 19. Na4 {[%clk 0:01:40.2]}
19... b5 {[%clk 0:01:50.8]} 20. cxb5 {[%clk 0:01:38.2]} 20... cxb5 {[%clk
0:01:51.7]} 21. Nc3 {[%clk 0:01:38.8]} 21... Rac8 {[%clk 0:01:45.4]} 22. Qd3
{[%clk 0:01:32.9]} 22... Nc5 {[%clk 0:01:31.8]} 23. Qb1 {[%clk 0:01:13.5]} 23...
Bxc3 {[%clk 0:01:10.6]} 24. Bxc3 {[%clk 0:01:12.9]} 24... Ncxe4 {[%clk
0:01:11.5]} 25. Bxe5 {[%clk 0:01:11.1]} 25... Nc3 {[%clk 0:01:11.1]} 26. Bxc3
{[%clk 0:01:06.6]} 26... Qxe2 {[%clk 0:01:10.8]} 27. Bxf6 {[%clk 0:01:06.5]}
27... Bxf3 {[%clk 0:01:02.1]} 28. Bxf3 {[%clk 0:00:59.6]} 28... Qxf3 {[%clk
0:01:01.2]} 29. Bd4 {[%clk 0:00:59.9]} 29... Rcd8 {[%clk 0:00:57.1]} 30. Rd2
{[%clk 0:00:45.6]} 30... Re2 {[%clk 0:00:35.1]} 31. Qd1 {[%clk 0:00:25.7]} 31...
Rde8 {[%clk 0:00:15.5]} 32. Be3 {[%clk 0:00:25.1]} 32... R8xe3 {[%clk
0:00:14.7]} 33. fxe3 {[%clk 0:00:26]} 33... Qg2# {[%clk 0:00:14.4]} 0-1

[Event "Late-Titled-Tuesday-Blitz-September-05-2023"]
[Site "Chess.com"]
[Date "2023.09.05"]
[Round "5"]
[White "leschebaza"]
[Black "PawnEatingZombie"]
[Result "1-0"]
[WhiteElo "2396"]
[BlackElo "2094"]
[TimeControl "180+1"]
[EndTime "14:56:13 PDT"]
[Termination "leschebaza won on time"]

1. d4 {[%clk 0:02:59.8]} 1... e6 {[%clk 0:02:58.4]} 2. c4 {[%clk 0:02:59.5]}
2... b6 {[%clk 0:02:58.5]} 3. Nc3 {[%clk 0:02:59.5]} 3... Bb7 {[%clk 0:02:58.4]}
4. Nf3 {[%clk 0:02:57.5]} 4... Bb4 {[%clk 0:02:56.3]} 5. Bd2 {[%clk 0:02:52.4]}
5... f5 {[%clk 0:02:54.9]} 6. e3 {[%clk 0:02:52.2]} 6... Nf6 {[%clk 0:02:54.7]}
7. Bd3 {[%clk 0:02:50]} 7... O-O {[%clk 0:02:54.1]} 8. Qc2 {[%clk 0:02:42.3]}
8... Bxc3 {[%clk 0:02:53.2]} 9. Bxc3 {[%clk 0:02:36.4]} 9... Ne4 {[%clk
0:02:54.1]} 10. O-O-O {[%clk 0:02:29.7]} 10... d6 {[%clk 0:02:51.3]} 11. Kb1
{[%clk 0:02:15.7]} 11... Nd7 {[%clk 0:02:50.9]} 12. h4 {[%clk 0:02:10.4]} 12...
Ndf6 {[%clk 0:02:34.5]} 13. Ng5 {[%clk 0:02:09.2]} 13... Qe7 {[%clk 0:02:31.2]}
14. Nxe4 {[%clk 0:02:06.5]} 14... fxe4 {[%clk 0:02:25.3]} 15. Be2 {[%clk
0:02:04.6]} 15... d5 {[%clk 0:01:43.1]} 16. f4 {[%clk 0:01:44.7]} 16... a5
{[%clk 0:01:31.2]} 17. g4 {[%clk 0:01:43.4]} 17... Ba6 {[%clk 0:01:29.4]} 18. h5
{[%clk 0:01:35]} 18... Bxc4 {[%clk 0:01:24]} 19. Bxc4 {[%clk 0:01:32.5]} 19...
dxc4 {[%clk 0:01:24.3]} 20. g5 {[%clk 0:01:32.6]} 20... Nd5 {[%clk 0:01:20.6]}
21. Qxe4 {[%clk 0:01:32.9]} 21... b5 {[%clk 0:01:16.1]} 22. Rc1 {[%clk
0:01:08.4]} 22... Qf7 {[%clk 0:01:00.6]} 23. Ka1 {[%clk 0:01:04.8]} 23... Qf5
{[%clk 0:00:52]} 24. Qf3 {[%clk 0:01:05.1]} 24... Qxg5 {[%clk 0:00:25.2]} 25.
Rcg1 {[%clk 0:01:00.2]} 25... Qf6 {[%clk 0:00:21.1]} 26. Qe4 {[%clk 0:00:36.8]}
26... b4 {[%clk 0:00:17.1]} 27. Bd2 {[%clk 0:00:32.7]} 27... c3 {[%clk
0:00:17.1]} 28. Bc1 {[%clk 0:00:32.5]} 28... a4 {[%clk 0:00:14.4]} 29. Rg6
{[%clk 0:00:30.6]} 29... hxg6 {[%clk 0:00:12.9]} 30. hxg6 {[%clk 0:00:31.5]}
30... Qf5 {[%clk 0:00:03.1]} 31. Rh8+ {[%clk 0:00:30.6]} 31... Kxh8 {[%clk
0:00:03.7]} 32. Qh1+ {[%clk 0:00:30.8]} 1-0

[Event "Late-Titled-Tuesday-Blitz-September-05-2023"]
[Site "Chess.com"]
[Date "2023.09.05"]
[Round "5"]
[White "K_A_S_T_O_R"]
[Black "Fonsofan"]
[Result "1-0"]
[WhiteElo "2959"]
[BlackElo "2740"]
[TimeControl "180+1"]
[EndTime "14:56:14 PDT"]
[Termination "K_A_S_T_O_R won on time"]

1. e4 {[%clk 0:03:00.9]} 1... d6 {[%clk 0:02:54.1]} 2. d4 {[%clk 0:03:00]} 2...
Nf6 {[%clk 0:02:54.6]} 3. Nc3 {[%clk 0:02:57.5]} 3... e5 {[%clk 0:02:55]} 4. Nf3
{[%clk 0:02:57.6]} 4... Nbd7 {[%clk 0:02:54.3]} 5. Bc4 {[%clk 0:02:57.2]} 5...
Be7 {[%clk 0:02:54.1]} 6. O-O {[%clk 0:02:57.3]} 6... O-O {[%clk 0:02:54.7]} 7.
Re1 {[%clk 0:02:56.6]} 7... exd4 {[%clk 0:02:52.3]} 8. Nxd4 {[%clk 0:02:56]}
8... Nb6 {[%clk 0:02:53]} 9. Bf1 {[%clk 0:02:54.4]} 9... Re8 {[%clk 0:02:50.3]}
10. g3 {[%clk 0:02:52.3]} 10... Bf8 {[%clk 0:02:40.7]} 11. Bg2 {[%clk 0:02:51]}
11... d5 {[%clk 0:02:41]} 12. e5 {[%clk 0:02:32.6]} 12... Ng4 {[%clk 0:02:40.3]}
13. e6 {[%clk 0:02:11.3]} 13... Nf6 {[%clk 0:02:30.9]} 14. exf7+ {[%clk
0:02:09.6]} 14... Kxf7 {[%clk 0:02:31.8]} 15. Rxe8 {[%clk 0:02:09.5]} 15... Qxe8
{[%clk 0:02:31.1]} 16. Ndb5 {[%clk 0:02:04.8]} 16... Qe7 {[%clk 0:01:14.7]} 17.
Bf4 {[%clk 0:02:00.7]} 17... Bg4 {[%clk 0:01:12.3]} 18. f3 {[%clk 0:01:26.4]}
18... Qc5+ {[%clk 0:01:11.3]} 19. Kh1 {[%clk 0:01:26.6]} 19... Bd7 {[%clk
0:01:08]} 20. Nd4 {[%clk 0:01:19.6]} 20... Re8 {[%clk 0:01:03.5]} 21. Nce2
{[%clk 0:01:13.4]} 21... Nc4 {[%clk 0:01:02.3]} 22. b3 {[%clk 0:01:12.4]} 22...
Ne3 {[%clk 0:00:58.8]} 23. Qd2 {[%clk 0:01:09.3]} 23... Nxg2 {[%clk 0:00:36.6]}
24. Kxg2 {[%clk 0:01:09.7]} 24... c6 {[%clk 0:00:37]} 25. g4 {[%clk 0:01:05.7]}
25... Qe7 {[%clk 0:00:35.9]} 26. Ng3 {[%clk 0:01:02.3]} 26... c5 {[%clk
0:00:32.1]} 27. Nde2 {[%clk 0:01:00.6]} 27... Bc6 {[%clk 0:00:26.8]} 28. c3
{[%clk 0:00:57.3]} 28... d4 {[%clk 0:00:17.1]} 29. cxd4 {[%clk 0:00:57.2]} 29...
Qd7 {[%clk 0:00:07.9]} 30. h3 {[%clk 0:00:49.7]} 30... Rd8 {[%clk 0:00:07.1]}
31. Rd1 {[%clk 0:00:48.6]} 31... Nd5 {[%clk 0:00:06.4]} 32. Bg5 {[%clk
0:00:44.2]} 32... Re8 {[%clk 0:00:05.8]} 33. Ne4 {[%clk 0:00:42.8]} 33... b6
{[%clk 0:00:04.1]} 34. dxc5 {[%clk 0:00:42.7]} 34... bxc5 {[%clk 0:00:05]} 35.
N2c3 {[%clk 0:00:41.5]} 35... Nxc3 {[%clk 0:00:04.4]} 36. Qf4+ {[%clk
0:00:38.1]} 36... Kg8 {[%clk 0:00:03.2]} 37. Rxd7 {[%clk 0:00:38.2]} 1-0

[Event "Late-Titled-Tuesday-Blitz-September-05-2023"]
[Site "Chess.com"]
[Date "2023.09.05"]
[Round "5"]
[White "FaustinoOro"]
[Black "Lady_Nika"]
[Result "1-0"]
[WhiteElo "2855"]
[BlackElo "2479"]
[TimeControl "180+1"]
[EndTime "14:56:14 PDT"]
[Termination "FaustinoOro won by resignation"]

1. e4 {[%clk 0:03:00.9]} 1... e6 {[%clk 0:02:59.3]} 2. d4 {[%clk 0:03:00.8]}
2... d5 {[%clk 0:02:59.1]} 3. Nd2 {[%clk 0:02:58.4]} 3... Nf6 {[%clk 0:02:59.1]}
4. e5 {[%clk 0:02:58.2]} 4... Nfd7 {[%clk 0:02:59.2]} 5. c3 {[%clk 0:02:49.6]}
5... c5 {[%clk 0:02:59.1]} 6. Bd3 {[%clk 0:02:49.9]} 6... Nc6 {[%clk 0:02:59.4]}
7. Ne2 {[%clk 0:02:50.1]} 7... a6 {[%clk 0:02:59.7]} 8. Nf3 {[%clk 0:02:49.6]}
8... b5 {[%clk 0:02:59.7]} 9. O-O {[%clk 0:02:49.1]} 9... Qb6 {[%clk 0:02:58.1]}
10. Re1 {[%clk 0:02:46.7]} 10... Be7 {[%clk 0:02:56.4]} 11. Be3 {[%clk 0:02:46]}
11... c4 {[%clk 0:02:56.2]} 12. Bc2 {[%clk 0:02:45.9]} 12... b4 {[%clk
0:02:56.4]} 13. Ng3 {[%clk 0:02:29.9]} 13... g6 {[%clk 0:02:52.3]} 14. h4 {[%clk
0:02:28.3]} 14... h5 {[%clk 0:02:46.9]} 15. Qd2 {[%clk 0:02:22.5]} 15... a5
{[%clk 0:02:46.1]} 16. Bg5 {[%clk 0:02:21.5]} 16... Ba6 {[%clk 0:02:45.6]} 17.
Bxe7 {[%clk 0:02:14.2]} 17... Nxe7 {[%clk 0:02:44.5]} 18. Ng5 {[%clk 0:02:14.7]}
18... Nf5 {[%clk 0:02:39.8]} 19. Nxf5 {[%clk 0:02:14]} 19... gxf5 {[%clk
0:02:39.6]} 20. Bxf5 {[%clk 0:02:08.1]} 20... exf5 {[%clk 0:02:28.1]} 21. e6
{[%clk 0:02:08.1]} 21... Nf6 {[%clk 0:02:28]} 22. exf7+ {[%clk 0:02:04.7]} 22...
Kf8 {[%clk 0:02:18.5]} 23. Re6 {[%clk 0:01:49.3]} 23... Qd8 {[%clk 0:02:17.4]}
24. Re8+ {[%clk 0:01:44.7]} 24... Nxe8 {[%clk 0:02:16.3]} 25. Ne6+ {[%clk
0:01:45.2]} 25... Kxf7 {[%clk 0:02:16.2]} 26. Nxd8+ {[%clk 0:01:44.9]} 26...
Rxd8 {[%clk 0:02:16.8]} 27. Re1 {[%clk 0:01:41.5]} 27... Nd6 {[%clk 0:02:15]}
28. Re5 {[%clk 0:01:32.2]} 28... bxc3 {[%clk 0:02:13.2]} 29. bxc3 {[%clk
0:01:32.3]} 29... Bb7 {[%clk 0:02:05.4]} 30. Qg5 {[%clk 0:01:24.6]} 30... Rd7
{[%clk 0:02:05.2]} 31. f3 {[%clk 0:01:21.2]} 31... Rh7 {[%clk 0:01:51.4]} 32.
Re1 {[%clk 0:01:08.9]} 32... Bc8 {[%clk 0:01:48]} 33. Rb1 {[%clk 0:01:00.7]}
33... Rb7 {[%clk 0:01:46.7]} 34. Re1 {[%clk 0:01:00.9]} 34... Rd7 {[%clk
0:01:42.3]} 35. Qc1 {[%clk 0:01:00.2]} 35... Rg7 {[%clk 0:01:41.1]} 36. Qa3
{[%clk 0:00:56.7]} 36... f4 {[%clk 0:01:36.8]} 37. Qxa5 {[%clk 0:00:52.4]} 37...
Nf5 {[%clk 0:01:36.4]} 38. Qb6 {[%clk 0:00:50.2]} 38... Rd6 {[%clk 0:01:15.1]}
39. Qc7+ {[%clk 0:00:47.6]} 39... Bd7 {[%clk 0:01:14]} 40. Re5 {[%clk
0:00:46.6]} 40... Kg8 {[%clk 0:00:44.2]} 41. Rxf5 {[%clk 0:00:42.7]} 41... Rdg6
{[%clk 0:00:42.4]} 42. Qd8+ {[%clk 0:00:41.5]} 42... Kh7 {[%clk 0:00:42]} 43.
Rxh5+ {[%clk 0:00:41.8]} 43... Rh6 {[%clk 0:00:42.3]} 44. Rxh6+ {[%clk
0:00:42.1]} 44... Kxh6 {[%clk 0:00:43.1]} 45. Qf6+ {[%clk 0:00:42.1]} 45... Kh7
{[%clk 0:00:41.6]} 46. Qxf4 {[%clk 0:00:41.9]} 46... Bh3 {[%clk 0:00:39.6]} 47.
g3 {[%clk 0:00:41.2]} 1-0